bitfinex/quotes_BTCUSD_20220213
["timestamp","ask_amount","ask_price","bid_price","bid_amount"]
[1644761088432,0.27499902,42548.0,42546.0,0.330146]
[1644761088634,0.37464832,42548.0,42547.0,0.330146]
[1644761088835,0.37464832,42548.0,42545.0,0.23501607]
[1644761088836,0.53337065,42546.0,42545.0,0.23501607]
[1644761089033,0.81530925,42546.0,42545.0,0.56516207]
[1644761089236,0.53337065,42546.0,42545.0,0.62391707]
[1644761089434,0.45364354,42546.0,42545.0,0.62391707]
[1644761090035,0.55354354,42546.0,42545.0,0.62391707]
[1644761090702,0.45364354,42546.0,42545.0,0.62391707]
[1644761094343,0.45364354,42546.0,42545.0,0.388901]
[1644761094536,0.45364354,42546.0,42545.0,0.058755]
[1644761094736,0.72143042,42546.0,42545.0,0.058755]
[1644761095336,0.72143042,42546.0,42541.0,0.117522]
[1644761095538,0.83044612,42546.0,42543.0,0.00053163]
[1644761095738,0.25147841,42544.0,42543.0,0.00053163]
[1644761095940,0.5290619,42544.0,42543.0,0.00053163]
[1644761096138,0.4090704,42544.0,42543.0,0.00053163]
[1644761096737,0.4090704,42544.0,42542.0,0.058766]
[1644761096938,0.4093211,42544.0,42542.0,0.058766]
[1644761097537,0.27783419,42544.0,42543.0,0.330146]
[1644761097740,0.27758349,42544.0,42543.0,0.330146]
[1644761097941,0.27758349,42544.0,42542.0,0.058766]
[1644761098387,0.0002507,42545.0,42542.0,0.058766]
[1644761098594,0.73438894,42546.0,42542.0,0.058766]
[1644761098889,0.26802103,42545.0,42542.0,0.058766]
[1644761099088,0.32703773,42545.0,42542.0,0.058766]
[1644761099289,0.32703773,42545.0,42542.0,0.05929765]
[1644761099889,0.26827173,42545.0,42542.0,0.05929765]
[1644761100289,0.26827173,42545.0,42542.0,0.058766]
[1644761100691,0.26827173,42545.0,42543.0,0.330146]
[1644761100890,0.26827173,42545.0,42544.0,0.058765]
[1644761101088,0.26802103,42545.0,42544.0,0.058765]
[1644761103749,0.45389424,42546.0,42544.0,0.058765]
[1644761103954,0.45389424,42546.0,42545.0,0.330146]
[1644761104149,0.45364354,42546.0,42544.0,0.058765]
[1644761104347,0.45364354,42546.0,42545.0,0.330146]
[1644761104547,0.45389424,42546.0,42544.0,0.058765]
[1644761104748,0.45389424,42546.0,42545.0,0.330146]
[1644761104950,0.45364354,42546.0,42545.0,0.330146]
[1644761105150,0.45364354,42546.0,42544.0,0.10670022]
[1644761105450,0.45389424,42546.0,42544.0,0.058765]
[1644761105681,0.45389424,42546.0,42544.0,0.10544394]
[1644761105882,0.45389424,42546.0,42545.0,0.330146]
[1644761106080,0.71742919,42546.0,42545.0,0.330146]
[1644761107084,0.45364354,42546.0,42545.0,0.330146]
[1644761108287,0.45364354,42546.0,42545.0,0.37161484]
[1644761109348,0.45364354,42546.0,42544.0,0.058765]
[1644761109543,0.45364354,42546.0,42545.0,0.330146]
[1644761109942,0.45364354,42546.0,42544.0,0.058765]
[1644761110343,0.45364354,42546.0,42545.0,0.330146]
[1644761110742,0.45364354,42546.0,42544.0,0.058765]
[1644761110946,0.45364354,42546.0,42545.0,0.330146]
[1644761111144,0.45364354,42546.0,42544.0,0.058765]
[1644761111343,0.45364354,42546.0,42545.0,0.330146]
[1644761111344,0.45389424,42546.0,42545.0,0.330146]
[1644761111546,0.45364354,42546.0,42545.0,0.330146]
[1644761116848,0.45364354,42546.0,42545.0,0.380146]
[1644761119244,0.45354265,42546.0,42545.0,0.380146]
[1644761128386,0.45354265,42546.0,42544.0,0.058765]
[1644761128585,0.45354265,42546.0,42545.0,0.330146]
[1644761128586,0.71488626,42546.0,42545.0,0.330146]
[1644761128787,0.45379335,42546.0,42545.0,0.330146]
[1644761128986,0.45354265,42546.0,42545.0,0.330146]
[1644761134634,0.45354265,42546.0,42544.0,0.058765]
[1644761134841,0.26696035,42545.0,42544.0,0.058765]
[1644761135037,0.26039967,42545.0,42544.0,0.058765]
[1644761136387,0.45379335,42546.0,42545.0,0.330146]
[1644761136588,0.45354265,42546.0,42545.0,0.33696443]
[1644761136789,0.45354265,42546.0,42545.0,0.48696443]
[1644761136991,0.45354265,42546.0,42545.0,0.33696443]
[1644761137788,0.45354265,42546.0,42545.0,0.48696443]
[1644761138789,0.45354265,42546.0,42545.0,0.38696443]
[1644761139438,0.45354265,42546.0,42545.0,0.33696443]
[1644761140239,0.45354265,42546.0,42545.0,0.33667324]
[1644761143999,0.45354265,42546.0,42545.0,0.48667324]
[1644761147642,0.45354265,42546.0,42545.0,0.47985481]
[1644761149043,0.45354265,42546.0,42545.0,0.32985481]
[1644761149242,0.45354265,42546.0,42544.0,0.058765]
[1644761149441,0.45354265,42546.0,42545.0,0.330038]
[1644761149839,0.45354265,42546.0,42544.0,0.058765]
[1644761150040,0.45354265,42546.0,42545.0,0.330038]
[1644761150441,0.71740968,42546.0,42545.0,0.330038]
[1644761151995,0.45354265,42546.0,42545.0,0.330038]
[1644761155838,0.45354265,42546.0,42545.0,0.480038]
[1644761159193,0.45354265,42546.0,42545.0,0.479908]
[1644761160191,0.45354265,42546.0,42545.0,0.330038]
[1644761161192,0.45354265,42546.0,42545.0,0.380038]
[1644761162243,0.45354265,42546.0,42545.0,0.430038]
[1644761162444,0.45354265,42546.0,42545.0,0.530038]
[1644761164848,0.45354265,42546.0,42545.0,0.7586202]
[1644761165601,0.45354265,42546.0,42545.0,0.90709121]
[1644761165805,0.45354265,42546.0,42545.0,0.7586202]
[1644761168603,0.45354265,42546.0,42545.0,0.530038]
[1644761176941,0.45354265,42546.0,42545.0,0.515038]
[1644761177142,0.45354265,42546.0,42545.0,0.330038]
[1644761178241,0.45354265,42546.0,42545.0,0.480038]
[1644761178844,0.45354265,42546.0,42545.0,0.530038]
[1644761179841,0.45354265,42546.0,42545.0,0.480038]
[1644761180692,0.45354265,42546.0,42545.0,0.380038]
[1644761181397,0.45354265,42546.0,42545.0,0.330038]
[1644761181594,0.45354265,42546.0,42545.0,0.380038]
[1644761182796,0.45354265,42546.0,42545.0,0.330038]
[1644761182994,0.45354265,42546.0,42545.0,0.380038]
[1644761183193,0.45354265,42546.0,42545.0,5.370038]
[1644761183395,0.45354265,42546.0,42545.0,5.04]
[1644761183593,0.45354265,42546.0,42545.0,5.18847101]
[1644761183796,0.45354265,42546.0,42545.0,5.51850901]
[1644761184100,0.45354265,42546.0,42545.0,5.56850901]
[1644761184349,0.45354265,42546.0,42545.0,5.66850901]
[1644761185844,0.45354265,42546.0,42545.0,5.83584724]
[1644761186649,0.45354265,42546.0,42545.0,5.45580924]
[1644761186845,0.45354265,42546.0,42545.0,5.33847101]
[1644761187245,0.45354265,42546.0,42545.0,5.66850901]
[1644761187445,0.45354265,42546.0,42545.0,5.83582134]
[1644761193938,0.45354265,42546.0,42545.0,5.66850901]
[1644761194341,0.45354265,42546.0,42545.0,5.83573778]
[1644761198500,0.45354265,42546.0,42545.0,5.66850901]
[1644761199102,0.45354265,42546.0,42545.0,5.83577486]
[1644761200938,0.06489498,42550.0,42545.0,5.83577486]
[1644761201137,0.5656507,42552.0,42546.0,0.330038]
[1644761201337,0.5656507,42552.0,42547.0,0.058753]
[1644761201536,0.5656507,42552.0,42548.0,0.330038]
[1644761201837,0.0022507,42552.0,42549.0,0.26288454]
[1644761202237,0.0022507,42552.0,42550.0,0.330038]
[1644761202437,0.0022507,42552.0,42549.0,0.26288454]
[1644761203090,0.0022507,42552.0,42549.0,0.32163754]
[1644761203692,0.0022507,42552.0,42550.0,0.05]
[1644761204092,0.0022507,42552.0,42551.0,0.330038]
[1644761204293,0.002,42552.0,42550.0,0.05]
[1644761204596,0.0022507,42552.0,42550.0,0.05]
[1644761205193,0.00487679,42552.0,42550.0,0.05]
[1644761205394,0.00487679,42552.0,42551.0,0.07469971]
[1644761205593,0.00462609,42552.0,42551.0,0.07469971]
[1644761207341,0.00462609,42552.0,42551.0,0.34372956]
[1644761207741,0.00462609,42552.0,42551.0,0.07469971]
[1644761209145,0.00187679,42553.0,42551.0,0.07469971]
[1644761209343,0.00187679,42553.0,42551.0,0.13344971]
[1644761209544,0.00187679,42553.0,42551.0,0.05875]
[1644761209749,0.00196957,42552.0,42550.0,0.1675]
[1644761209944,0.00222027,42552.0,42550.0,0.1675]
[1644761210990,0.00222027,42552.0,42550.0,0.1175]
[1644761211392,0.00222027,42552.0,42550.0,0.1675]
[1644761211592,0.00222027,42552.0,42550.0,0.1175]
[1644761212398,0.00222027,42552.0,42550.0,0.1675]
[1644761214741,0.00222027,42552.0,42551.0,0.330038]
[1644761214942,0.00196957,42552.0,42550.0,0.1675]
[1644761215139,0.00222027,42552.0,42551.0,0.330038]
[1644761215340,0.00240882,42553.0,42551.0,0.00205506]
[1644761215541,0.00240882,42553.0,42551.0,0.06080406]
[1644761215542,0.00162609,42553.0,42551.0,0.06080406]
[1644761215944,0.0011,42556.0,42553.0,1.0]
[1644761216143,0.0011,42556.0,42554.0,0.330038]
[1644761216341,0.00135085,42556.0,42554.0,0.58532628]
[1644761216542,0.00135085,42556.0,42554.0,0.43685527]
[1644761216741,0.00135085,42556.0,42554.0,0.49559727]
[1644761216940,0.00135085,42556.0,42554.0,0.72330329]
[1644761217339,0.00135085,42556.0,42554.0,0.8717743]
[1644761217545,0.00135085,42556.0,42554.0,0.72330329]
[1644761217741,0.00135085,42556.0,42554.0,0.9217743]
[1644761217939,0.00135085,42556.0,42555.0,0.330038]
[1644761218193,0.0011,42556.0,42555.0,0.380038]
[1644761218393,0.0011,42556.0,42555.0,0.74623832]
[1644761218792,0.0011,42556.0,42555.0,0.89470933]
[1644761219993,0.0011,42556.0,42555.0,0.89675317]
[1644761220598,0.001,42562.0,42555.0,0.89675317]
[1644761220599,0.31997805,42571.0,42558.0,1.0]
[1644761220795,0.1201,42571.0,42560.0,0.23488]
[1644761221002,0.1201,42571.0,42561.0,1.330038]
[1644761221003,0.001,42571.0,42561.0,1.330038]
[1644761221195,0.001,42571.0,42561.0,0.330038]
[1644761221396,0.001,42571.0,42562.0,0.14847101]
[1644761221596,0.001,42571.0,42566.0,0.06642845]
[1644761221867,0.00125117,42571.0,42566.0,0.45518845]
[1644761222056,0.00125117,42571.0,42566.0,0.44646645]
[1644761222259,0.00125117,42571.0,42567.0,0.330038]
[1644761222658,0.00125117,42571.0,42567.0,0.430038]
[1644761222864,0.00125117,42571.0,42567.0,0.488759]
[1644761222865,0.00141873,42571.0,42567.0,0.488759]
[1644761223458,0.00111873,42571.0,42567.0,0.488759]
[1644761223760,0.00111873,42571.0,42567.0,0.81760365]
[1644761223958,0.00095117,42571.0,42568.0,0.330038]
[1644761224159,0.00111873,42571.0,42569.0,0.330038]
[1644761224361,0.00111873,42571.0,42570.0,0.20140063]
[1644761224557,0.00086756,42571.0,42570.0,0.26012363]
[1644761224758,0.00086756,42571.0,42570.0,0.31012363]
[1644761225160,0.0007,42571.0,42570.0,0.74016163]
[1644761225365,0.0007,42571.0,42570.0,0.41012363]
[1644761226191,0.0007,42571.0,42570.0,0.74016163]
[1644761226591,0.0007,42571.0,42570.0,0.41012363]
[1644761228193,0.0007,42571.0,42570.0,0.74016163]
[1644761228595,0.0007,42571.0,42570.0,0.41012363]
[1644761228793,0.0007,42571.0,42570.0,0.74016163]
[1644761228992,0.0007,42571.0,42570.0,0.41012363]
[1644761229193,0.0007,42571.0,42570.0,0.74016163]
[1644761229442,0.0007,42571.0,42570.0,0.41012363]
[1644761229641,0.0007,42571.0,42570.0,0.59016163]
[1644761229842,0.0007,42571.0,42570.0,0.62521242]
[1644761230041,0.0007,42571.0,42570.0,0.62724938]
[1644761230644,0.05169574,42572.0,42571.0,0.330038]
[1644761230842,0.00053348,42573.0,42571.0,0.44748]
[1644761231145,0.0999,42574.0,42571.0,0.15476213]
[1644761231342,0.10043347,42574.0,42572.0,0.058725]
[1644761232141,0.06584853,42573.0,42572.0,0.058725]
[1644761234995,0.06584853,42573.0,42570.0,0.26012963]
[1644761235196,0.17617499,42571.0,42570.0,0.20140063]
[1644761236498,0.17517499,42571.0,42570.0,0.20140063]
[1644761237145,0.17517499,42571.0,42566.0,0.117457]
[1644761237348,0.17517499,42571.0,42567.0,0.058733]
[1644761237844,0.15017499,42571.0,42568.0,0.330038]
[1644761238045,0.15017499,42571.0,42565.0,0.36182707]
[1644761238243,0.15017499,42571.0,42566.0,0.330038]
[1644761238452,0.15017499,42571.0,42569.0,0.058729]
[1644761238647,0.15017499,42571.0,42559.0,0.05]
[1644761238648,0.05,42568.0,42565.0,0.00053397]
[1644761238846,0.429938,42567.0,42565.0,0.00053397]
[1644761239146,0.330038,42566.0,42565.0,0.00053397]
[1644761239549,0.330038,42566.0,42559.0,0.05]
[1644761239550,0.0999,42565.0,42559.0,0.05]
[1644761239747,0.07140644,42558.0,42557.0,0.058746]
[1644761240146,0.00025117,42562.0,42557.0,0.058746]
[1644761240347,0.05025117,42563.0,42557.0,0.058746]
[1644761240590,0.10015117,42562.0,42557.0,0.058746]
[1644761240793,0.2846306,42561.0,42557.0,0.058746]
[1644761240998,0.2846306,42561.0,42558.0,0.00053403]
[1644761240999,0.3433766,42561.0,42558.0,0.00053403]
[1644761241193,0.3433766,42561.0,42558.0,0.05927903]
[1644761241691,0.07189843,42559.0,42558.0,0.05927903]
[1644761241893,0.07189843,42559.0,42558.0,0.058745]
[1644761242092,0.34643034,42559.0,42558.0,0.058745]
[1644761242992,0.57825749,42559.0,42556.0,0.05928104]
[1644761243194,0.57825749,42559.0,42556.0,0.058747]
[1644761243394,0.57350866,42559.0,42556.0,0.05928104]
[1644761243597,0.34143034,42559.0,42556.0,0.05928104]
[1644761243892,0.34168151,42559.0,42556.0,0.05928104]
[1644761244192,0.58755624,42559.0,42556.0,0.05928104]
[1644761244446,0.0671496,42559.0,42556.0,0.058747]
[1644761245342,0.33045957,42559.0,42556.0,0.058747]
[1644761245543,0.33045957,42559.0,42555.0,0.058748]
[1644761245744,0.22335063,42561.0,42557.0,0.00205416]
[1644761245944,0.00025122,42561.0,42557.0,0.00205416]
[1644761246344,0.08853273,42563.0,42557.0,0.00205416]
[1644761246545,0.00025122,42562.0,42557.0,0.00205416]
[1644761246746,0.08853273,42563.0,42557.0,0.00205416]
[1644761247045,0.00025122,42562.0,42558.0,0.00053403]
[1644761247246,0.25979695,42565.0,42558.0,0.00053403]
[1644761247445,0.00025122,42564.0,42558.0,0.00053403]
[1644761247645,0.26004817,42565.0,42558.0,0.00053403]
[1644761247846,0.00025122,42564.0,42558.0,0.00053403]
[1644761248094,0.0999,42560.0,42559.0,0.00053401]
[1644761248395,0.07740248,42562.0,42559.0,0.05927501]
[1644761248594,0.00025122,42561.0,42559.0,0.05927501]
[1644761248800,0.07740248,42562.0,42559.0,0.05927501]
[1644761248995,0.00025122,42561.0,42559.0,0.05927501]
[1644761249194,0.0776537,42562.0,42559.0,0.058741]
[1644761249395,0.00025122,42561.0,42559.0,0.058741]
[1644761249594,0.07740248,42562.0,42559.0,0.058741]
[1644761249796,0.00025122,42561.0,42558.0,0.00053402]
[1644761250095,0.058742,42562.0,42560.0,0.00205115]
[1644761250294,0.00025122,42561.0,42560.0,0.00205115]
[1644761250497,0.05899322,42562.0,42560.0,0.00205115]
[1644761250698,0.058742,42562.0,42560.0,0.00205115]
[1644761251306,0.14365101,42562.0,42560.0,0.00205115]
[1644761251942,0.13865101,42562.0,42560.0,0.00205115]
[1644761256510,0.330038,42561.0,42560.0,0.00205115]
[1644761266599,0.00410229,42559.0,42558.0,0.00053346]
[1644761266869,0.38414029,42559.0,42558.0,0.00053346]
[1644761267055,0.68414029,42559.0,42558.0,0.00053346]
[1644761267251,0.68414029,42559.0,42541.0,0.00019404]
[1644761267252,0.117554,42557.0,42541.0,0.00019404]
[1644761267453,0.117554,42557.0,42533.0,0.1176]
[1644761267454,0.08989866,42549.0,42542.0,0.28302471]
[1644761267653,0.54973564,42548.0,42542.0,0.28302471]
[1644761267850,0.54973564,42548.0,42542.0,0.34179071]
[1644761267851,0.05877,42547.0,42542.0,0.34179071]
[1644761268651,0.05877,42547.0,42542.0,0.3423243]
[1644761268852,0.05877,42547.0,42542.0,0.13998655]
[1644761269358,0.330038,42546.0,42542.0,0.08122055]
[1644761269553,0.05877,42547.0,42542.0,0.08068696]
[1644761269752,0.330038,42546.0,42542.0,0.08122055]
[1644761269955,0.058769,42546.0,42542.0,0.08122055]
[1644761270155,0.058769,42546.0,42542.0,0.00053359]
[1644761270355,0.330038,42545.0,42542.0,0.00053359]
[1644761270791,0.26004519,42541.0,42540.0,0.00019404]
[1644761270992,0.26004519,42541.0,42539.0,0.05896304]
[1644761271393,0.26004519,42541.0,42539.0,0.13378548]
[1644761271593,0.26004519,42541.0,42539.0,0.00019404]
[1644761271793,0.53091499,42541.0,42537.0,0.05896604]
[1644761271997,0.2657258,42540.0,42538.0,0.00019404]
[1644761272194,0.31881719,42541.0,42538.0,0.00053363]
[1644761272393,0.31881719,42541.0,42538.0,0.00072767]
[1644761272597,0.330038,42540.0,42538.0,0.00072767]
[1644761272797,0.6268145,42539.0,42538.0,0.00053363]
[1644761273195,0.2967765,42539.0,42533.0,0.00019404]
[1644761273495,0.05878,42538.0,42536.0,0.00053365]
[1644761273694,0.330038,42537.0,42536.0,0.00053365]
[1644761273896,0.26733434,42537.0,42536.0,0.00053365]
[1644761274096,0.05878,42538.0,42536.0,0.00053365]
[1644761274348,0.330038,42537.0,42533.0,0.00019656]
[1644761274547,0.05878,42538.0,42535.0,0.00053366]
[1644761275543,0.05878,42538.0,42533.0,0.00019656]
[1644761275746,0.26870193,42534.0,42532.0,0.08452798]
[1644761275946,0.26870193,42534.0,42532.0,0.08433142]
[1644761277152,0.26870193,42534.0,42532.0,0.08452798]
[1644761278190,0.26870193,42534.0,42532.0,0.14311042]
[1644761278392,0.26870193,42534.0,42532.0,0.14330698]
[1644761279293,0.26870193,42534.0,42532.0,0.14311042]
[1644761279491,0.26870193,42534.0,42532.0,0.14330698]
[1644761279696,0.27030566,42534.0,42532.0,0.14330698]
[1644761279893,0.2432751,42534.0,42533.0,0.04358586]
[1644761280092,0.2432751,42534.0,42533.0,0.04378242]
[1644761280291,0.2432751,42534.0,42533.0,0.00019656]
[1644761280491,0.26615827,42540.0,42532.0,0.14330698]
[1644761280694,0.29377611,42543.0,42533.0,0.05]
[1644761280894,0.29377611,42543.0,42536.0,0.32036291]
[1644761281293,0.29377611,42543.0,42536.0,0.32055947]
[1644761281491,0.28126591,42547.0,42541.0,0.19036143]
[1644761281693,0.5107,42548.0,42541.0,0.19036143]
[1644761281694,0.3858,42548.0,42541.0,0.19036143]
[1644761281947,0.0999,42551.0,42541.0,0.19036143]
[1644761282147,0.29683221,42552.0,42541.0,0.19036143]
[1644761282544,0.26179444,42548.0,42541.0,0.19036143]
[1644761282745,0.26179444,42548.0,42545.0,0.06733849]
[1644761283745,0.330038,42547.0,42545.0,0.06733849]
[1644761283945,0.26179444,42548.0,42545.0,0.06733849]
[1644761284146,0.330038,42547.0,42544.0,0.00053316]
[1644761284346,0.26179444,42548.0,42544.0,0.00053316]
[1644761285146,0.26179444,42548.0,42541.0,0.117521]
[1644761285348,0.058763,42547.0,42545.0,0.06857303]
[1644761285593,0.330038,42546.0,42545.0,0.06857303]
[1644761285793,0.058763,42547.0,42544.0,0.05929517]
[1644761286296,0.330038,42546.0,42543.0,0.00165634]
[1644761286496,0.058768,42546.0,42543.0,0.00218951]
[1644761287499,0.058768,42546.0,42543.0,0.00165634]
[1644761287698,0.4172307,42551.0,42543.0,0.2811047]
[1644761287996,0.27876645,42554.0,42543.0,0.2223407]
[1644761288198,0.330038,42552.0,42543.0,0.2223407]
[1644761288396,0.26784502,42551.0,42543.0,0.2223407]
[1644761288798,0.51146874,42551.0,42547.0,0.08794061]
[1644761288997,0.388797,42550.0,42547.0,0.058759]
[1644761289197,0.330038,42549.0,42545.0,0.00036759]
[1644761290055,0.330038,42548.0,42547.0,0.07539228]
[1644761293393,0.058762,42547.0,42545.0,0.05929374]
[1644761293593,0.058762,42547.0,42545.0,0.058761]
[1644761294394,0.058762,42547.0,42543.0,0.13942287]
[1644761294795,0.058762,42547.0,42543.0,0.13776653]
[1644761294994,0.058762,42547.0,42543.0,0.13829872]
[1644761297143,0.058762,42547.0,42543.0,0.13776653]
[1644761297344,0.330038,42546.0,42543.0,0.00053219]
[1644761297549,0.058762,42547.0,42543.0,0.00053219]
[1644761298343,0.058762,42547.0,42541.0,0.24420587]
[1644761298543,0.058762,42547.0,42543.0,0.00053219]
[1644761298944,0.058762,42547.0,42543.0,0.05929619]
[1644761299544,0.058762,42547.0,42544.0,0.00198756]
[1644761300447,0.058762,42547.0,42544.0,0.06075056]
[1644761300697,0.058762,42547.0,42544.0,0.00198756]
[1644761303201,0.058762,42547.0,42544.0,0.06075156]
[1644761303598,0.05868141,42547.0,42544.0,0.06075156]
[1644761305144,0.05868141,42547.0,42544.0,0.00198756]
[1644761309595,0.05868141,42547.0,42544.0,0.06075156]
[1644761310395,0.05868141,42547.0,42544.0,0.00198756]
[1644761310994,0.05868141,42547.0,42544.0,0.06075156]
[1644761311595,0.05868141,42547.0,42544.0,0.00198756]
[1644761313551,0.12742655,42547.0,42544.0,0.00198756]
[1644761318298,0.05868141,42547.0,42544.0,0.00198756]
[1644761320143,0.05868141,42547.0,42544.0,0.00265952]
[1644761320747,0.08193367,42546.0,42544.0,0.00265952]
[1644761322349,0.330038,42545.0,42544.0,0.00265952]
[1644761323998,0.3299206,42545.0,42544.0,0.00265952]
[1644761325500,0.08193367,42546.0,42544.0,0.00265952]
[1644761325699,0.330042,42545.0,42544.0,0.00265952]
[1644761327546,0.08193367,42546.0,42544.0,0.00265952]
[1644761327746,0.330042,42545.0,42544.0,0.00265952]
[1644761327948,0.08193367,42546.0,42544.0,0.00265952]
[1644761328548,0.330042,42545.0,42544.0,0.00265952]
[1644761329149,0.05868141,42547.0,42544.0,0.00265952]
[1644761329350,0.330042,42546.0,42544.0,0.00265952]
[1644761329551,0.05868141,42547.0,42544.0,0.00265952]
[1644761330149,0.330042,42546.0,42544.0,0.00265952]
[1644761330805,0.40870855,42546.0,42544.0,0.00265952]
[1644761337052,0.68027027,42546.0,42544.0,0.00265952]
[1644761337855,0.26322737,42545.0,42544.0,0.00265952]
[1644761338101,0.59326937,42545.0,42544.0,0.00265952]
[1644761339004,0.330042,42545.0,42544.0,0.00265952]
[1644761342653,0.330042,42546.0,42544.0,0.00265952]
[1644761342953,0.05868141,42547.0,42544.0,0.25009264]
[1644761343351,0.05868141,42547.0,42545.0,0.058765]
[1644761343754,0.330042,42547.0,42546.0,0.08476169]
[1644761344154,0.058762,42549.0,42546.0,0.08476169]
[1644761344356,0.330042,42548.0,42546.0,0.08476169]
[1644761344558,0.058762,42549.0,42546.0,0.08476169]
[1644761345156,0.330042,42548.0,42546.0,0.14352469]
[1644761345357,0.058762,42549.0,42546.0,0.14352469]
[1644761345597,0.330042,42548.0,42546.0,0.14352469]
[1644761345799,0.05876,42550.0,42546.0,0.14352469]
[1644761346000,0.0999,42555.0,42546.0,0.14352469]
[1644761346199,0.1999,42555.0,42546.0,0.14352469]
[1644761346598,0.0999,42555.0,42548.0,0.00050243]
[1644761346802,0.330042,42554.0,42548.0,0.22584881]
[1644761346998,0.058758,42551.0,42549.0,0.058758]
[1644761347798,0.05865985,42551.0,42549.0,0.058758]
[1644761347999,0.330042,42550.0,42549.0,0.058758]
[1644761348200,0.05865985,42551.0,42549.0,0.058758]
[1644761349647,0.05865985,42551.0,42550.0,0.00199194]
[1644761349854,0.05865985,42551.0,42549.0,0.05477412]
[1644761351350,0.05865985,42551.0,42548.0,0.22584752]
[1644761352355,0.05865985,42551.0,42548.0,0.22534638]
[1644761353100,0.05865985,42551.0,42547.0,0.00050114]
[1644761353700,0.05865985,42551.0,42546.0,0.14352269]
[1644761353900,0.05865985,42551.0,42547.0,0.00050144]
[1644761354302,0.330042,42550.0,42547.0,0.00050144]
[1644761354501,0.330042,42549.0,42547.0,0.00050144]
[1644761354704,0.27966137,42548.0,42547.0,0.00050144]
[1644761354925,0.60970337,42548.0,42544.0,0.00067196]
[1644761355203,0.330042,42547.0,42546.0,0.00050145]
[1644761355400,0.54909077,42547.0,42546.0,0.00050145]
[1644761355602,0.88653516,42547.0,42546.0,0.00050145]
[1644761356005,0.88653516,42547.0,42544.0,0.00067196]
[1644761356204,0.88653516,42547.0,42544.0,0.00117342]
[1644761356403,0.08727083,42545.0,42544.0,0.00117342]
[1644761356603,0.330042,42545.0,42544.0,0.00117342]
[1644761357253,0.330042,42545.0,42544.0,0.00067196]
[1644761357853,0.59488186,42545.0,42544.0,0.00067196]
[1644761358657,0.6590813,42545.0,42544.0,0.00067196]
[1644761359858,0.66045337,42545.0,42544.0,0.00067196]
[1644761360062,0.77801337,42545.0,42544.0,0.00067196]
[1644761360257,0.66045337,42545.0,42544.0,0.00067196]
[1644761364852,0.59625393,42545.0,42544.0,0.00067196]
[1644761365050,0.25696947,42540.0,42537.0,0.07853003]
[1644761365255,0.25696947,42540.0,42539.0,0.00019703]
[1644761365548,0.25696947,42540.0,42537.0,0.07872706]
[1644761365753,0.25696947,42540.0,42537.0,0.00019703]
[1644761365949,0.25696947,42540.0,42536.0,0.05019703]
[1644761366350,0.058781,42539.0,42536.0,0.05019703]
[1644761368404,0.058781,42539.0,42536.0,0.10897403]
[1644761368707,0.058781,42539.0,42537.0,0.37487997]
[1644761368906,0.00137207,42545.0,42538.0,0.330042]
[1644761369103,0.00137207,42545.0,42540.0,0.18856208]
[1644761369304,0.00137207,42545.0,42541.0,0.05]
[1644761369803,0.00137207,42545.0,42542.0,0.08582743]
[1644761370101,0.330042,42549.0,42542.0,0.29398111]
[1644761370708,0.24523895,42550.0,42542.0,0.29398111]
[1644761370904,0.330042,42549.0,42542.0,0.29398111]
[1644761371106,0.058763,42549.0,42542.0,0.29398111]
[1644761371305,0.330042,42548.0,42544.0,0.058763]
[1644761371506,0.330042,42547.0,42544.0,0.058763]
[1644761371707,0.330042,42546.0,42541.0,0.05]
[1644761371960,0.117528,42549.0,42541.0,0.05]
[1644761373157,0.058764,42547.0,42541.0,0.13870369]
[1644761373458,0.058764,42547.0,42542.0,0.058765]
[1644761374258,0.058764,42547.0,42541.0,0.13870369]
[1644761374860,0.00137372,42546.0,42541.0,0.13870369]
[1644761375061,0.058766,42545.0,42541.0,0.13870369]
[1644761375466,0.00137372,42546.0,42541.0,0.19747069]
[1644761375911,0.00137372,42546.0,42541.0,0.058767]
[1644761376110,0.058764,42545.0,42540.0,0.00053169]
[1644761376512,0.058764,42545.0,42540.0,0.108769]
[1644761376711,0.058764,42545.0,42540.0,0.10930069]
[1644761377110,0.058764,42545.0,42540.0,0.34414191]
[1644761377310,0.058764,42545.0,42542.0,0.05]
[1644761377510,0.058764,42545.0,42542.0,0.108766]
[1644761378115,0.058764,42545.0,42542.0,0.058766]
[1644761378311,0.058764,42545.0,42542.0,0.14613828]
[1644761378514,0.058764,42545.0,42542.0,0.19613828]
[1644761379955,0.00121099,42544.0,42542.0,0.19613828]
[1644761380455,0.00121099,42544.0,42542.0,0.108766]
[1644761380759,0.00121099,42544.0,42542.0,0.05]
[1644761381155,0.00121099,42544.0,42540.0,0.29360822]
[1644761381357,0.058767,42543.0,42540.0,0.29413991]
[1644761381556,0.058767,42543.0,42540.0,0.05929869]
[1644761381757,0.13234955,42543.0,42540.0,0.05929869]
[1644761382456,0.13234955,42543.0,42540.0,0.058767]
[1644761382956,0.058767,42543.0,42540.0,0.058767]
[1644761386616,0.3197449,42543.0,42540.0,0.058767]
[1644761387260,0.31965604,42543.0,42540.0,0.058767]
[1644761388262,0.05867814,42543.0,42542.0,0.05]
[1644761388462,0.00121099,42544.0,42542.0,0.380042]
[1644761389162,0.00121099,42544.0,42543.0,0.0825213]
[1644761389861,0.058763,42547.0,42543.0,0.0825213]
[1644761390161,0.058763,42547.0,42545.0,0.05]
[1644761391007,0.19735249,42548.0,42545.0,0.108761]
[1644761391808,0.19735249,42548.0,42545.0,0.058761]
[1644761392010,0.19735249,42548.0,42545.0,0.108761]
[1644761393009,0.058763,42547.0,42545.0,0.108761]
[1644761393812,0.058763,42547.0,42545.0,0.05]
[1644761394016,0.058763,42547.0,42543.0,0.1412863]
[1644761394664,0.058763,42547.0,42543.0,0.058765]
[1644761394862,0.05988903,42547.0,42543.0,0.058765]
[1644761400221,0.05988903,42547.0,42544.0,0.05]
[1644761400420,0.058763,42547.0,42544.0,0.05]
[1644761400819,0.058763,42547.0,42544.0,0.108764]
[1644761401895,0.058763,42547.0,42544.0,0.05]
[1644761404390,0.12203205,42547.0,42544.0,0.05]
[1644761404885,0.058763,42547.0,42544.0,0.05]
[1644761405492,0.058763,42547.0,42544.0,0.108764]
[1644761407117,0.058763,42547.0,42544.0,0.05]
[1644761408919,0.05868473,42547.0,42544.0,0.05]
[1644761412966,0.05868473,42547.0,42544.0,0.108764]
[1644761414820,0.19735249,42548.0,42544.0,0.108764]
[1644761416117,0.058765,42547.0,42544.0,0.108764]
[1644761416717,0.058765,42547.0,42544.0,0.05]